bitfinex/quotes_ETHUSD_20251021
["timestamp","ask_amount","ask_price","bid_price","bid_amount"]
[1761056219494,0.001,3928.0,3927.5,1.728]
[1761056219659,0.001,3928.0,3927.1,0.4238]
[1761056219980,0.2293,3928.0,3927.6,3.637]
[1761056220166,0.2293,3928.0,3926.6,19.18403899]
[1761056220167,2.54595447,3927.8,3927.7,3.637]
[1761056220484,2.54615453,3927.5,3927.2,3.636]
[1761056220669,0.4466,3927.9,3926.1,2.1518]
[1761056220670,0.001,3928.0,3927.1,3.636]
[1761056220847,0.001,3928.0,3926.2,0.02546992]
[1761056220848,0.001,3928.0,3927.3,18.78570177]
[1761056221044,0.001,3928.0,3927.9,0.1287]
[1761056221244,0.001,3928.0,3927.9,19.31273899]
[1761056221448,0.001,3928.0,3927.9,23.58662865]
[1761056221663,0.001,3928.0,3927.9,25.57176977]
[1761056222004,0.2283,3930.4,3928.3,4.27363042]
[1761056222209,0.2283,3931.0,3928.5,1.728]
[1761056222345,0.2283,3931.0,3928.4,2.54550133]
[1761056222346,0.2283,3931.0,3929.1,18.76023899]
[1761056222545,0.4466,3931.5,3929.4,2.54491779]
[1761056222546,2.54362313,3931.4,3929.4,2.54491779]
[1761056222781,0.55337278,3931.3,3929.8,2.54459563]
[1761056222960,0.4466,3932.1,3930.0,2.54447338]
[1761056223156,2.54331121,3931.9,3929.9,6.18358123]
[1761056223357,0.6749,3931.7,3930.0,0.1663]
[1761056223876,2.54373815,3931.3,3930.0,0.1663]
[1761056224077,0.4466,3931.6,3930.0,0.1663]
[1761056224278,0.2283,3931.7,3929.2,0.4228]
[1761056224279,0.76842771,3931.5,3929.2,0.4228]
[1761056224484,0.76842771,3931.5,3929.3,3.633]
[1761056224682,0.2283,3931.7,3930.1,2.54444186]
[1761056224856,0.2283,3931.7,3929.6,18.76023899]
[1761056224857,0.2283,3931.7,3930.3,2.54433503]
[1761056225058,0.2283,3932.0,3930.4,0.0254427]
[1761056225395,2.54608185,3932.3,3930.5,0.5891]
[1761056225596,2.54608185,3932.3,3930.6,0.0254414]
[1761056225777,2.54319859,3932.1,3930.7,0.4228]
[1761056225982,2.54319859,3932.1,3930.8,0.02544011]
[1761056226297,2.54319859,3932.1,3930.9,3.63]
[1761056226444,0.27743819,3932.2,3931.0,0.02543881]
[1761056226650,2.54607106,3932.3,3931.0,0.44823881]
[1761056226651,0.003,3932.3,3931.0,0.44823881]
[1761056226893,0.003,3932.3,3931.1,2.54376758]
[1761056227089,0.003,3932.3,3931.0,0.44823881]
[1761056227090,0.003,3932.3,3931.0,0.4228]
[1761056227594,0.003,3932.3,3930.5,0.1663]
[1761056227595,0.4496,3932.3,3930.5,0.1663]
[1761056227753,0.003,3932.3,3930.6,4.0732414]
[1761056228182,0.003,3932.3,3930.7,0.4228]
[1761056228391,0.003,3932.3,3930.8,2.54395149]
[1761056228592,0.003,3932.3,3930.7,0.4228]
[1761056228593,2.54606338,3932.3,3930.7,0.4228]
[1761056228781,2.54606338,3932.3,3932.2,0.1264]
[1761056228964,2.54606338,3932.3,3931.8,3.625]
[1761056228965,0.003,3932.3,3931.8,3.625]
[1761056229153,0.003,3932.3,3931.9,3.625]
[1761056229361,0.003,3932.3,3932.0,3.624]
[1761056229755,0.003,3932.3,3932.1,0.0254317]
[1761056230087,0.003,3932.3,3932.2,2.54310564]
[1761056230392,0.003,3932.3,3932.2,10.07133669]
[1761056230554,0.003,3932.3,3932.2,10.04590564]
[1761056230888,0.01167377,3933.0,3932.8,2.23488]
[1761056231198,0.2283,3936.0,3934.0,2.54194204]
[1761056231498,0.4466,3935.3,3933.9,0.1161]
[1761056231651,0.4466,3935.3,3934.0,3.632]
[1761056231652,2.54117922,3935.2,3934.0,3.632]
[1761056231853,0.4466,3935.3,3934.0,3.632]
[1761056232367,0.4466,3935.3,3933.9,0.1161]
[1761056232572,0.2283,3936.0,3933.9,0.1161]
[1761056232573,2.54083491,3935.8,3934.0,3.65541942]
[1761056232778,0.4466,3935.9,3934.0,4.06651942]
[1761056232980,0.2283,3936.0,3934.0,5.97619795]
[1761056232981,0.4466,3935.3,3934.0,5.97619795]
[1761056233259,0.4466,3935.3,3934.0,3.63]
[1761056233460,2.98775787,3935.3,3934.0,3.63]
[1761056233683,2.54117698,3935.2,3934.0,3.63]
[1761056233900,0.4466,3935.3,3934.0,3.63]
[1761056234315,0.2283,3936.2,3934.0,28.25443615]
[1761056234481,0.2283,3936.2,3934.0,28.73589673]
[1761056234815,0.4466,3936.9,3934.0,28.73589673]
[1761056234816,0.4466,3936.9,3934.9,2.54136064]
[1761056235110,0.4466,3936.9,3934.9,8.31147424]
[1761056235327,0.4466,3936.8,3934.9,8.28506064]
[1761056235460,0.2283,3937.3,3934.9,28.20303533]
[1761056235662,0.6749,3937.3,3934.9,28.20303533]
[1761056236163,2.76879456,3936.3,3934.9,1.728]
[1761056236363,2.76879456,3936.3,3934.3,0.3847]
[1761056236364,0.4466,3936.1,3934.3,0.3847]
[1761056236596,0.4466,3935.6,3934.5,1.728]
[1761056236773,0.4466,3936.0,3934.5,1.728]
[1761056236977,2.54071808,3935.9,3934.5,1.728]
[1761056237264,0.30489979,3935.0,3934.4,3.628]
[1761056237584,0.07659979,3935.0,3934.4,3.628]
[1761056237784,0.07659979,3935.0,3934.5,1.728]
[1761056237990,0.07659979,3935.0,3934.6,0.02541554]
[1761056238176,0.07659979,3935.0,3934.6,0.41011554]
[1761056238492,0.07659979,3935.0,3934.8,2.54142308]
[1761056238693,0.07659979,3935.0,3934.9,5.354]
[1761056238899,0.07659979,3935.0,3934.9,3.7524]
[1761056239102,2.54073281,3935.9,3934.9,3.7524]
[1761056239398,0.1264,3936.6,3935.8,0.1264]
[1761056239698,0.4395,3936.9,3936.4,0.1264]
[1761056239864,0.2283,3937.3,3935.9,3.629]
[1761056240205,2.5403196,3936.6,3935.9,3.629]
[1761056240496,2.54039223,3936.4,3936.3,0.1264]
[1761056240664,0.2174,3936.0,3935.7,0.1264]
[1761056241095,0.63446951,3936.4,3935.6,3.63]
[1761056241096,0.2174,3936.3,3935.6,3.63]
[1761056241397,0.2174,3936.3,3935.9,0.1264]
[1761056241612,2.54017508,3936.8,3935.6,3.63]
[1761056241799,0.5659,3937.1,3936.2,0.1264]
[1761056242108,2.54027573,3936.6,3936.2,0.1264]
[1761056242310,0.50804102,3936.6,3935.6,3.63]
[1761056242518,0.4395,3937.0,3935.6,3.63]
[1761056243010,0.4395,3937.5,3935.7,0.02540844]
[1761056243228,0.09496441,3938.2,3935.7,1.75340844]
[1761056243431,0.4395,3938.1,3936.1,1.728]
[1761056243774,0.4395,3938.1,3935.8,0.3847]
[1761056243775,19.91797469,3938.0,3935.8,0.3847]
[1761056243994,2.53993786,3937.2,3935.7,1.728]
[1761056244341,0.09496441,3938.2,3936.2,22.45847064]
[1761056244542,0.28105,3938.3,3938.1,0.1287]
[1761056244744,0.28105,3938.3,3938.2,3.661]
[1761056244951,0.28105,3938.3,3937.2,3.661]
[1761056244952,0.219,3938.2,3937.2,3.661]
[1761056245112,0.6623,3938.2,3937.2,3.661]
[1761056245304,0.219,3938.2,3937.2,3.661]
[1761056245633,0.4433,3938.1,3937.2,3.661]
[1761056245823,2.53943557,3937.9,3937.2,3.661]
[1761056246153,0.29827356,3937.8,3937.2,3.661]
[1761056246298,0.28105,3938.3,3937.3,0.02539811]
[1761056246607,0.72435,3938.3,3936.3,0.2898]
[1761056246810,0.72435,3938.3,3936.4,5.42240392]
[1761056247026,0.28105,3938.3,3936.5,1.728]
[1761056247223,0.28105,3938.3,3936.6,0.31520263]
[1761056247608,0.28105,3938.3,3937.1,2.53990156]
[1761056247933,0.28105,3938.3,3937.4,1.728]
[1761056248137,0.28105,3938.3,3937.3,1.728]
[1761056248333,0.28105,3938.3,3937.4,3.664]
[1761056248536,0.28105,3938.3,3937.5,3.664]
[1761056248720,0.28105,3938.3,3937.6,3.664]
[1761056248920,0.28105,3938.3,3937.7,3.664]
[1761056249123,0.28105,3938.3,3937.8,3.664]
[1761056249331,2.82022027,3938.3,3937.8,3.664]
[1761056249501,0.28105,3938.3,3937.8,3.664]
[1761056250051,0.72435,3938.3,3935.9,0.2898]
[1761056250278,0.72435,3938.3,3936.0,0.5852065]
[1761056250408,0.28105,3938.3,3936.6,1.728]
[1761056250608,0.28105,3938.3,3937.4,2.53974575]
[1761056250837,0.28105,3938.3,3937.7,1.728]
[1761056251019,0.28105,3938.3,3937.7,1.75339553]
[1761056251231,0.28105,3938.3,3937.7,1.728]
[1761056251562,0.28105,3938.3,3937.2,0.02539876]
[1761056251757,0.28105,3938.3,3937.4,1.728]
[1761056251909,0.28105,3938.3,3937.5,0.023]
[1761056252313,0.28105,3938.3,3938.2,0.1264]
[1761056252512,2.82021664,3938.3,3938.2,0.1264]
[1761056252835,3.79944249,3938.3,3938.2,0.1264]
[1761056253014,1.26027585,3938.3,3937.5,3.673]
[1761056253244,0.28105,3938.3,3938.2,0.1264]
[1761056254112,0.28105,3938.3,3937.5,3.673]
[1761056254628,0.28105,3938.3,3936.4,2.0178]
[1761056254947,0.72435,3938.3,3936.4,0.2898]
[1761056255143,0.72435,3938.3,3934.1,3.14176573]
[1761056255144,2.53936481,3938.0,3935.7,0.2898]
[1761056255346,0.25393648,3937.9,3935.8,1.901]
[1761056255548,0.4433,3938.2,3935.9,0.02540714]
[1761056255841,0.4433,3938.2,3936.1,19.91797469]
[1761056256310,0.28205,3938.3,3936.2,2.0178]
[1761056256508,2.98255527,3938.2,3936.2,2.0178]
[1761056256730,2.98255527,3938.2,3935.4,0.76098377]
[1761056256731,2.53972768,3937.5,3935.7,2.0178]
[1761056256997,0.25397277,3937.5,3935.8,2.19357747]
[1761056257263,0.25397277,3937.5,3935.9,1.728]
[1761056257436,2.53927977,3938.2,3936.3,2.54040617]
[1761056257640,2.53927977,3938.2,3936.1,22.45851242]
[1761056257641,2.5395999,3937.7,3936.2,1.728]
[1761056257840,2.53975153,3937.4,3935.8,2.19357747]
[1761056258165,0.4433,3938.0,3935.8,2.19357747]
[1761056258464,0.28205,3938.3,3936.4,1.728]
[1761056258666,0.28205,3938.3,3936.5,2.8554958]
[1761056258852,0.28205,3938.3,3937.4,19.91797469]
[1761056259030,0.02715,3938.3,3937.5,3.678]
[1761056259235,0.02715,3938.3,3937.6,2.0178]
[1761056259654,0.02715,3938.3,3937.5,3.678]
[1761056259655,0.02715,3938.3,3937.5,1.728]
[1761056259965,0.02715,3938.3,3937.7,3.676]
[1761056260130,0.02715,3938.3,3937.8,4.58267232]
[1761056260334,0.02715,3938.3,3938.2,4.26723112]
[1761056260676,0.219,3940.1,3938.6,1.728]
[1761056260964,0.219,3940.1,3938.7,3.8488]
[1761056261166,0.219,3940.1,3938.7,0.1728]
[1761056261653,0.4433,3940.0,3938.8,3.673]
[1761056261856,2.98138073,3940.0,3938.8,3.673]
[1761056262171,2.98143801,3939.9,3938.1,1.9907]
[1761056262345,2.5381999,3939.8,3937.4,1.716]
[1761056262541,2.53884188,3938.9,3937.5,5.5566]
[1761056262740,2.53867171,3939.1,3937.5,0.1716]
[1761056262741,2.53866647,3939.1,3937.5,0.1716]
[1761056262945,2.53866647,3939.1,3937.6,3.67]
[1761056263164,0.74144999,3939.7,3937.5,0.1716]
[1761056263165,0.29814999,3939.7,3937.5,0.1716]
[1761056263334,0.4433,3939.2,3937.6,3.668]
[1761056263533,2.98189915,3939.2,3937.7,2.28356]
[1761056263742,0.4433,3939.2,3937.7,0.55556]
[1761056263965,2.53871541,3939.0,3936.8,1.716]
[1761056264134,0.4433,3939.1,3937.0,21.64597469]
[1761056264337,0.4433,3939.1,3938.5,0.1264]
[1761056264338,2.53895007,3938.7,3938.5,0.1264]
[1761056264535,2.53895007,3938.7,3938.6,3.665]
[1761056264748,3.20127323,3938.6,3938.5,0.1264]
[1761056264932,0.6623,3938.6,3938.5,3.7904]
[1761056265136,1.23630111,3938.6,3937.0,0.2551]
[1761056265371,0.4433,3938.5,3938.1,0.1264]
[1761056265568,0.4433,3938.5,3938.2,0.651]
[1761056266194,2.53793262,3940.3,3938.2,0.651]
[1761056266195,0.219,3938.8,3938.2,0.651]
[1761056266398,0.219,3938.8,3937.4,0.2627]
[1761056266686,2.53897323,3938.6,3937.5,3.66]
[1761056266836,2.53897323,3938.6,3936.9,0.2551]
[1761056267185,0.4433,3938.5,3937.0,3.659]
[1761056267478,2.98239772,3938.5,3937.1,1.728]
[1761056267687,2.98239772,3938.5,3937.2,0.02539876]
[1761056267851,2.53910386,3938.4,3937.2,0.02539876]
[1761056268030,0.4433,3938.5,3937.2,0.59214864]
[1761056268031,2.73234918,3938.5,3937.2,0.59214864]
[1761056268240,0.219,3938.8,3937.2,0.56674988]
[1761056268444,2.53901821,3938.6,3936.8,0.1283]
[1761056268742,0.219,3938.8,3936.9,1.825]
[1761056268944,2.53936305,3938.0,3937.0,1.85040005]
[1761056269173,0.219,3938.8,3937.1,2.1479]
[1761056269487,0.219,3940.1,3937.4,1.728]
[1761056269783,0.219,3940.1,3936.8,0.02540134]
[1761056269784,2.5381999,3939.8,3936.6,1.9831]
[1761056269984,0.219,3940.1,3936.6,1.9831]
[1761056269985,19.91797469,3939.6,3936.8,3.661]
[1761056270201,0.219,3940.1,3936.9,1.728]
[1761056270380,2.53891318,3938.7,3936.9,1.728]
[1761056270584,19.91797469,3940.0,3936.9,1.728]
[1761056270585,2.53915208,3938.4,3937.0,3.666]
[1761056270753,0.219,3938.3,3936.9,1.728]
[1761056271107,0.219,3938.3,3937.0,3.665]
[1761056271305,0.219,3938.3,3936.7,0.1283]
[1761056271473,2.75819796,3938.3,3937.1,3.663]
[1761056271681,2.75819796,3938.3,3936.4,0.2551]
[1761056271682,0.219,3938.3,3936.4,0.2551]
[1761056271867,0.219,3938.3,3936.5,3.8994]
[1761056272205,2.53941513,3938.0,3936.6,0.38994]
[1761056272368,2.53923112,3938.2,3936.6,0.62734]
[1761056273096,2.75816963,3938.3,3936.6,0.62734]
[1761056273318,0.219,3938.3,3936.6,0.38994]
[1761056273469,2.53971137,3937.5,3936.7,3.658]
[1761056273674,0.50688,3937.9,3935.7,0.1283]
[1761056273974,0.50688,3937.9,3935.8,0.627]
[1761056273975,2.54009243,3936.9,3935.8,0.627]
[1761056274187,0.2262,3936.8,3935.2,0.59401166]
[1761056274395,0.2262,3936.8,3935.3,0.27832009]
[1761056274702,2.54025285,3936.7,3935.0,2.45]
[1761056275010,2.54052131,3936.2,3936.1,0.002]
[1761056276191,0.1264,3936.7,3936.1,1.795]
[1761056276387,0.2262,3936.8,3936.1,1.795]
[1761056276388,0.2262,3936.8,3936.1,1.98714]
[1761056276590,0.2262,3937.2,3936.1,1.98714]
[1761056276802,0.22,3938.3,3936.1,3.71514]
[1761056276803,0.2262,3937.6,3936.1,3.71514]
[1761056276986,0.2262,3937.6,3936.2,0.4287]
[1761056277380,0.2262,3937.6,3936.3,3.66]
[1761056277580,0.2262,3937.6,3936.4,0.428284]
[1761056277787,0.2262,3937.6,3936.5,3.66]
[1761056278103,0.2262,3937.6,3936.1,0.19414]
[1761056278305,2.5399487,3937.1,3936.2,3.659]
[1761056278499,0.2262,3937.6,3936.2,3.659]
[1761056278801,2.53986618,3937.3,3936.2,3.659]
[1761056279000,0.2262,3937.6,3936.2,3.659]
[1761056279506,2.53980301,3937.4,3936.1,0.002]
[1761056279707,2.53980301,3937.4,3936.3,3.654]
[1761056279907,2.53980301,3937.4,3936.3,4.0196]
[1761056280078,2.53980301,3937.4,3936.3,0.3656]
[1761056280413,0.2262,3937.6,3936.4,3.652]
[1761056280716,2.75921681,3938.3,3936.5,3.651]
[1761056280717,0.22,3938.3,3936.5,3.651]
[1761056280892,0.22,3938.3,3936.8,19.91797469]
[1761056281078,0.22,3938.3,3936.9,0.02540069]
[1761056281413,0.22,3938.3,3937.1,1.728]
[1761056281577,0.22,3938.3,3937.2,0.21567]
[1761056281784,0.001,3938.3,3937.3,3.656]
[1761056282527,0.001,3938.3,3938.2,0.1601]
[1761056282713,0.001,3938.3,3938.2,3.8121]
[1761056283018,0.001,3938.3,3938.2,0.1601]
[1761056283220,0.001,3938.3,3938.2,4.2398]
[1761056283413,0.001,3938.3,3938.2,4.66378]
[1761056283608,0.003,3940.2,3938.3,0.25391666]
[1761056283785,0.003,3940.2,3940.1,0.1161]
[1761056283988,0.003,3940.2,3940.1,3.7671]
[1761056284217,0.003,3940.2,3940.1,0.1161]
[1761056284423,0.003,3940.2,3940.1,3.661]
[1761056284786,0.003,3940.2,3940.1,0.3661]
[1761056285009,0.003,3940.2,3940.1,4.05248006]
[1761056285219,0.003,3940.2,3940.1,4.0311]
[1761056285427,0.003,3940.2,3940.1,0.3661]
[1761056285582,0.003,3940.2,3940.1,3.665]
[1761056285782,0.003,3940.2,3940.1,4.11908006]
[1761056285982,0.953,3941.0,3940.1,3.69038006]
[1761056286206,0.953,3941.0,3940.6,1.728]
[1761056286409,0.953,3941.0,3940.9,0.1264]
[1761056286610,0.953,3941.0,3940.0,1.716]
[1761056286828,0.953,3941.0,3940.2,1.728]
[1761056287209,0.953,3941.0,3940.3,3.665]
[1761056287977,0.39779061,3944.4,3940.3,3.665]
[1761056287978,0.8125,3943.0,3941.3,0.50688]
[1761056288243,0.8125,3943.0,3941.1,0.2277]
[1761056288452,0.8125,3943.0,3941.5,1.728]
[1761056288618,0.8125,3943.0,3941.9,1.728]
[1761056288938,0.8125,3943.0,3941.5,1.728]
[1761056288939,0.8125,3943.0,3942.0,5.72435805]
[1761056289115,0.8125,3943.0,3942.1,1.728]
[1761056289315,0.8125,3943.0,3942.3,1.728]
[1761056289715,0.8125,3943.0,3942.4,0.4287]
[1761056289906,0.8125,3943.0,3942.6,1.728]
[1761056290317,0.8125,3943.0,3942.7,24.03267469]
[1761056290536,0.8125,3943.0,3942.8,2.03863805]
[1761056290718,0.8125,3943.0,3942.9,3.684]
[1761056290939,0.8125,3943.0,3942.9,3.686]
[1761056291317,0.84658717,3944.0,3943.0,1.728]
[1761056291518,0.84658717,3944.0,3943.1,0.02536075]
[1761056291842,0.84658717,3944.0,3943.2,0.58680607]
[1761056292242,0.84658717,3944.0,3943.9,0.2277]
[1761056292442,0.84658717,3944.0,3943.9,5.6587]
[1761056292743,0.13169365,3944.7,3943.9,5.6587]
[1761056292744,0.13169365,3944.7,3944.1,5.92195]
[1761056292951,0.13169365,3944.7,3944.2,0.02535368]
[1761056293130,0.13169365,3944.7,3944.0,21.82956102]
[1761056293131,0.13169365,3944.7,3944.0,2.29387]
[1761056293634,0.13169365,3944.7,3944.1,0.28205432]
[1761056293832,0.13169365,3944.7,3944.0,2.29387]
[1761056294157,0.13169365,3944.7,3944.6,1.728]
[1761056294332,0.13169365,3944.7,3944.6,5.46035111]
[1761056294655,2.75912486,3948.1,3944.6,25.47757102]
[1761056294656,0.2262,3947.2,3944.6,25.47757102]
[1761056294828,0.2262,3947.2,3944.7,0.15035047]
[1761056295155,0.2262,3947.2,3944.8,0.50688]
[1761056295156,0.4512,3947.1,3944.8,0.50688]
[1761056295360,2.75965611,3947.2,3944.9,0.15034918]
[1761056295561,2.53411127,3946.2,3944.9,0.02534918]
[1761056295862,19.73019102,3947.1,3944.7,0.02535047]
[1761056296069,19.73019102,3947.1,3944.6,3.71]
[1761056296070,0.4512,3947.0,3944.6,3.71]
[1761056296363,2.53414872,3946.1,3944.7,0.02535047]
[1761056296584,0.2262,3947.2,3944.7,0.15035047]
[1761056296879,0.4512,3947.1,3943.7,1.84259989]
[1761056297023,0.4512,3947.1,3943.8,3.74835625]
[1761056297024,1.728,3946.5,3943.8,3.74835625]
[1761056297225,0.6774,3946.4,3943.9,1.728]
[1761056297563,1.728,3947.3,3943.9,1.728]
[1761056297564,0.2262,3948.9,3945.0,1.98148542]
[1761056297722,0.2262,3947.8,3945.3,0.50688]
[1761056297923,0.2262,3947.8,3945.3,0.02534661]
[1761056298159,0.4512,3947.7,3945.2,1.728]
[1761056298455,19.73019102,3947.7,3945.1,3.724]
[1761056298835,2.53376226,3946.8,3945.1,3.724]
[1761056299044,2.53324889,3947.5,3945.1,3.724]
[1761056299242,19.27899102,3947.1,3945.1,3.724]
[1761056299454,0.4435,3947.4,3945.1,3.724]
[1761056299632,0.4435,3947.7,3945.1,3.724]
[1761056299824,19.27899102,3946.3,3945.1,3.724]
[1761056300044,0.44740357,3950.5,3945.2,0.02534725]
[1761056300360,19.72249102,3947.7,3945.2,1.728]
[1761056300520,19.72249102,3947.7,3945.1,3.724]
[1761056300726,0.38585827,3947.9,3945.3,0.50688]
[1761056300926,0.38585827,3947.9,3945.5,0.50688]
[1761056300927,0.82935827,3947.9,3945.5,0.50688]
[1761056301233,0.82935827,3947.9,3945.4,0.15034597]
[1761056301234,2.53305638,3947.8,3945.6,0.02534468]
[1761056301441,2.53312055,3947.7,3945.2,1.75334725]
[1761056301750,0.4435,3947.7,3945.2,1.75334725]
[1761056302064,0.4435,3947.6,3945.2,1.87834725]
[1761056302452,2.53324889,3947.5,3945.2,1.75334725]
[1761056302759,0.4435,3947.6,3945.2,1.728]
[1761056302946,0.4435,3947.5,3945.1,3.724]
[1761056303150,0.4435,3947.5,3945.2,0.02534725]
[1761056303337,0.38585827,3947.9,3945.5,19.27899102]
[1761056303660,0.4435,3947.8,3945.6,0.02534468]
[1761056303860,2.53341704,3947.3,3945.6,0.02534468]
[1761056304160,0.4435,3947.8,3945.7,0.125]
[1761056304324,0.15005827,3947.9,3945.7,0.125]
[1761056304525,0.15005827,3947.9,3945.8,0.5322234]
[1761056304760,0.15005827,3947.9,3946.2,19.27899102]
[1761056304961,0.15005827,3947.9,3946.3,5.56134019]
[1761056305162,0.15005827,3947.9,3946.4,0.15033954]
[1761056305666,0.15005827,3947.9,3947.1,4.801992]
[1761056305852,0.15005827,3947.9,3947.7,1.728]
[1761056306037,0.15005827,3947.9,3947.8,0.15033056]
[1761056306228,0.00333872,3949.0,3948.0,2.9292928]
[1761056306426,0.00333872,3949.0,3948.3,0.50688]
[1761056306643,0.00333872,3949.0,3948.9,0.1264]
[1761056307027,0.00333872,3949.0,3948.9,1.8544]
[1761056307233,0.6815,3951.4,3948.9,4.9128155]
[1761056307431,0.6815,3951.4,3949.0,4.34188]
[1761056307650,2.53106887,3950.9,3949.1,1.728]
[1761056307849,0.4673,3951.0,3949.0,3.835]
[1761056308051,0.6815,3950.9,3949.0,3.835]
[1761056308264,0.2142,3950.9,3949.1,0.02532222]
[1761056308466,0.4673,3950.8,3949.0,3.835]
[1761056308632,0.2142,3951.4,3949.1,0.02532222]
[1761056308829,0.2142,3951.4,3949.1,1.75332222]
[1761056309030,0.6815,3951.4,3949.1,1.75332222]
[1761056309297,0.6815,3951.4,3949.0,3.835]
[1761056309298,0.4673,3951.0,3949.0,3.835]
[1761056309567,0.6815,3951.4,3949.2,1.728]
[1761056309954,0.4673,3951.0,3949.1,1.728]
[1761056310133,2.53106887,3950.9,3949.1,1.75332222]
[1761056310331,0.6815,3950.8,3949.1,1.728]
[1761056310660,0.2142,3950.8,3949.1,1.728]
[1761056310865,2.53132028,3950.6,3949.1,1.728]
[1761056311159,0.2142,3950.8,3949.1,1.728]
[1761056311160,2.998497,3950.7,3949.1,1.728]
[1761056311363,2.998497,3950.7,3949.0,3.835]
[1761056311364,0.4673,3950.7,3949.0,3.835]
[1761056311668,0.2142,3950.8,3949.0,3.835]
[1761056311839,0.4673,3950.6,3949.1,0.02532222]
[1761056312039,0.4673,3950.6,3949.0,3.86032286]
[1761056312241,0.4673,3950.6,3949.0,3.835]
[1761056312466,2.53170809,3950.0,3949.0,3.835]
[1761056312640,0.4673,3950.6,3949.0,3.835]
[1761056312969,0.2142,3950.8,3949.0,3.86032286]
[1761056313200,2.5313897,3950.4,3949.0,3.86032286]
[1761056313495,2.53154251,3950.2,3949.0,3.835]
[1761056313672,2.53156965,3950.2,3949.0,3.835]
[1761056313873,0.4673,3950.6,3949.0,3.835]
[1761056315068,2.53190108,3949.7,3949.0,3.835]
[1761056315371,0.4673,3950.0,3949.0,3.835]
[1761056315695,2.53187977,3949.7,3949.0,3.835]
[1761056315897,0.4673,3950.0,3949.0,3.835]
[1761056316118,0.2142,3949.1,3949.0,3.835]
[1761056316283,0.6815,3949.1,3948.1,1.713]
[1761056316467,0.2142,3950.8,3948.1,5.562]
[1761056316468,0.2142,3949.3,3948.1,5.562]
[1761056316663,2.53235919,3948.9,3948.1,5.562]
[1761056316898,2.53215841,3949.2,3948.1,3.849]
[1761056317171,0.4673,3948.8,3948.1,3.849]
[1761056317515,0.4673,3949.2,3948.9,0.1264]
[1761056317682,0.4673,3949.1,3947.5,3.848]
[1761056318020,0.1264,3949.0,3947.3,1.646]
[1761056318309,0.2142,3947.6,3947.3,1.646]
[1761056318466,0.2142,3947.6,3946.3,1.711]
[1761056318467,2.53325676,3947.5,3946.3,1.711]
[1761056318673,0.4673,3947.5,3946.3,1.711]
[1761056318902,0.2142,3947.6,3944.6,19.28099102]
[1761056318903,0.2142,3946.4,3945.3,3.846]
[1761056319103,0.4673,3946.3,3945.3,3.846]
[1761056319380,2.5340192,3946.3,3946.2,0.1264]
[1761056319593,19.27899102,3947.4,3945.3,3.846]
[1761056319594,0.2142,3947.8,3945.4,19.27899102]
[1761056319901,0.6815,3948.3,3946.1,1.728]
[1761056320087,3.21424895,3948.3,3946.2,0.02534083]
[1761056320290,0.2142,3948.3,3946.4,2.23488]
[1761056320467,0.2142,3948.3,3946.5,0.0253389]
[1761056320698,0.2142,3948.7,3946.5,0.0253389]
[1761056321030,0.2142,3948.7,3946.8,1.728]
[1761056321236,2.74668304,3948.7,3946.9,0.02533633]
[1761056321422,0.2142,3948.7,3947.0,1.728]
[1761056321728,0.2142,3948.7,3946.6,1.728]
[1761056321729,0.2142,3948.7,3947.1,0.02533505]
[1761056321939,0.4673,3948.8,3947.1,0.02533505]
[1761056321940,0.2142,3949.1,3947.4,1.728]
[1761056322154,0.2142,3949.1,3947.5,0.02533248]
[1761056322312,0.2142,3949.7,3947.8,1.728]
[1761056322637,0.2142,3949.7,3947.5,1.728]
[1761056322850,0.2142,3949.7,3947.6,0.02533184]
[1761056322854,0.4673,3949.6,3947.6,0.02533184]
[1761056323199,0.4673,3949.6,3947.4,0.02533313]
[1761056323397,0.4673,3949.5,3947.5,1.728]
[1761056323639,0.4673,3949.5,3947.8,1.728]
[1761056323931,0.4673,3949.5,3947.8,0.02533056]
[1761056324142,0.4673,3949.5,3947.5,0.02533248]
[1761056324434,0.4673,3949.5,3946.8,1.711]
[1761056324435,2.99927803,3949.5,3946.8,1.711]
[1761056324730,2.99927803,3949.5,3946.9,0.02533633]
[1761056324731,0.4673,3949.5,3946.9,0.02533633]
[1761056325048,2.53252818,3948.7,3946.9,0.02533633]
[1761056325249,2.53242862,3948.8,3946.9,2.55895814]
[1761056325536,0.6815,3949.3,3947.3,1.728]
[1761056325733,0.2142,3949.3,3947.3,1.728]
[1761056325900,2.53245948,3948.8,3947.3,1.728]
[1761056326102,2.53222253,3949.1,3947.3,1.728]
[1761056326315,2.53281577,3948.2,3947.3,1.728]
[1761056326601,2.53278123,3948.3,3946.8,3.439]
[1761056326801,2.53311548,3947.8,3946.8,1.711]
[1761056327000,2.74757724,3947.3,3946.5,3.864]
[1761056327238,0.2142,3947.3,3946.5,3.864]
[1761056327422,0.4673,3947.2,3945.2,0.02534725]
[1761056327737,3.00074188,3947.2,3945.3,3.863]
[1761056328041,3.00074945,3947.2,3945.3,3.863]
[1761056328237,2.53395729,3946.4,3945.3,3.863]
[1761056328534,0.4673,3947.1,3945.4,1.728]
[1761056328701,0.4673,3947.1,3945.3,3.863]
[1761056329130,0.4673,3947.1,3945.4,0.02534597]
[1761056329439,0.4673,3947.1,3945.4,1.728]
[1761056329734,3.00080561,3947.1,3947.0,0.1264]
[1761056330039,3.00080561,3947.1,3945.3,3.863]
[1761056330040,2.53389078,3946.5,3946.4,0.1264]